[Event "Wuerttemberg Rapid Teams 2024"]
[Site "B?blingen, Germany"]
[Date "2024.04.13"]
[Round "1.11"]
[White "Albrecht, Neil"]
[Black "Schuh, Karsten"]
[Result "1-0"]
[ECO "B55"]
[WhiteElo "1950"]
[BlackElo "2133"]
[Annotator "RC"]
[PlyCount "93"]
[EventDate "2024.04.13"]
[EventType "team-tourn"]
[SourceTitle "playchess.com"]
[Source "ChessBase"]
[SourceQuality "1"]
[TimeControl "900+5"]

1. e4 {[%emt 0:00:03]} c5 {[%emt 0:00:01]} 2. Nf3 {[%emt 0:00:01]} d6 {[%emt 0:00:01]} 3. d4 {[%emt 0:00:02]} cxd4 {[%emt 0:00:02]} 4. Nxd4 {[%emt 0:00:01]} Nf6 {[%emt 0:00:01]} 5. f3 {[%emt 0:00:02]} e5 {[%emt 0:00:03]} 6. Bb5+ {[%emt 0:00:06]} Nbd7 {[%emt 0:00:14]} 7. Nf5 {[%emt 0:00:03]} Qb6 {[%emt 0:00:19]} 8. c4 {[%emt 0:01:34]} a6 {[%emt 0:00:18]} 9. Ba4 {[%emt 0:00:37]} g6 {[%emt 0:00:58]} 10. Ne3 {[%emt 0:01:05]} Be7 {[%emt 0:00:49]} 11. Nc3 {[%emt 0:00:13]} Qa5 {[%emt 0:01:46]} 12. Bd2 {[%emt 0:00:18]} Qd8 {[%emt 0:00:01]} 13. Ned5 {[%emt 0:00:25]} Nxd5 {[%emt 0:00:08]} 14. Nxd5 {[%emt 0:00:01]} O-O {[%emt 0:00:18]} 15. Nxe7+ {[%emt 0:01:06]} Qxe7 {[%emt 0:00:01]} 16. O-O {[%emt 0:01:08]} Nc5 {[%emt 0:00:05]} 17. Bc2 {[%emt 0:00:01]} a5 {[%emt 0:00:18]} 18. b3 {[%emt 0:00:19]} Bd7 {[%emt 0:00:20]} 19. a3 {[%emt 0:00:16]} Ne6 {[%emt 0:00:15]} 20. Be3 {[%emt 0:00:14]} f5 {[%emt 0:00:27]} 21. b4 {[%emt 0:00:17]} fxe4 {[%emt 0:00:23]} 22. Bxe4 {[%emt 0:00:11]} Bc6 {[%emt 0:00:22]} 23. Bd5 {[%emt 0:00:16]} Kg7 {[%emt 0:00:14]} 24. Qd2 {[%emt 0:00:25]} Nf4 {[%emt 0:00:09]} 25. g3 {[%emt 0:00:36]} Nxd5 {[%emt 0:00:41]} 26. cxd5 {[%emt 0:00:11]} Bb5 {[%emt 0:00:19]} 27. Bh6+ {[%emt 0:00:05]} Kg8 {[%emt 0:00:01]} 28. Bxf8 {[%emt 0:00:06]} Qxf8 {[%emt 0:00:03]} 29. Rf2 {[%emt 0:00:07]} axb4 {[%emt 0:00:02]} 30. Qxb4 {[%emt 0:00:03]} Ba6 {[%emt 0:00:38]} 31. Rc1 {[%emt 0:00:08]} Qe7 {[%emt 0:00:13]} 32. Qb6 {[%emt 0:00:21]} Re8 {[%emt 0:00:43]} 33. Qc7 {[%emt 0:00:57]} Qf6 {[%emt 0:01:15]} 34. Qd7 {[%emt 0:00:14]} Re7 {[%emt 0:00:41]} 35. Qd8+ {[%emt 0:00:09]} Kg7 {[%emt 0:00:03]} 36. Rc8 {[%emt 0:00:38]} Rf7 {[%emt 0:01:15]} 37. Qh8+ {[%emt 0:00:44]} Kh6 {[%emt 0:00:00]} 38. Qxf6 {[%emt 0:00:02]} Rxf6 {[%emt 0:00:01]} 39. Rc7 {[%emt 0:00:13]} g5 {[%emt 0:00:06]} 40. Kg2 {[%emt 0:00:19]} Kg6 {[%emt 0:00:21]} 41. Rb2 {[%emt 0:00:22]} e4 {[%emt 0:00:42]} 42. fxe4 {[%emt 0:00:18]} Bf1+ {[%emt 0:00:04]} 43. Kg1 {[%emt 0:00:09]} Bd3 {[%emt 0:00:33]} 44. Rf2 {[%emt 0:00:19]} Bxe4 {[%emt 0:00:24]} 45. Rxb7 {[%emt 0:00:38]} Rxf2 {[%emt 0:00:09]} 46. Kxf2 {[%emt 0:00:04]} Bxd5 {[%emt 0:00:02]} 47. Rd7 {[%emt 0:00:06]} 1-0

[Event "Wuerttemberg Rapid Teams 2024"]
[Site "B?blingen, Germany"]
[Date "2024.04.13"]
[Round "2.2"]
[White "Vaysberg, Alexander"]
[Black "Deuer, Marius"]
[Result "0-1"]
[ECO "B15"]
[WhiteElo "2152"]
[BlackElo "2439"]
[Annotator "RC"]
[PlyCount "90"]
[EventDate "2024.04.13"]
[EventType "team-tourn"]
[SourceTitle "playchess.com"]
[Source "ChessBase"]
[SourceQuality "1"]
[TimeControl "900+5"]

1. e4 {[%emt 0:00:04]} c6 {[%emt 0:00:04]} 2. d4 {[%emt 0:00:02]} g6 {[%emt 0:00:02]} 3. h4 {[%emt 0:00:30]} d5 {[%emt 0:00:23]} 4. Nc3 {[%emt 0:00:26]} dxe4 {[%emt 0:00:17]} 5. Nxe4 {[%emt 0:00:07]} Nf6 {[%emt 0:00:05]} 6. Nxf6+ {[%emt 0:00:08]} exf6 {[%emt 0:00:01]} 7. Be3 {[%emt 0:00:48]} Be6 {[%emt 0:00:35]} 8. Bd3 {[%emt 0:00:59]} Nd7 {[%emt 0:01:09]} 9. Ne2 {[%emt 0:00:23]} Bd6 {[%emt 0:00:59]} 10. Nc3 {[%emt 0:02:00]} f5 {[%emt 0:01:30]} 11. Qe2 {[%emt 0:01:01]} Nf6 {[%emt 0:01:20]} 12. O-O-O {[%emt 0:01:29]} O-O {[%emt 0:01:36]} 13. Bg5 {[%emt 0:00:18]} Re8 {[%emt 0:01:24]} 14. h5 {[%emt 0:01:49]} Bf8 {[%emt 0:01:10]} 15. Qf3 {[%emt 0:00:21]} Bg7 {[%emt 0:00:16]} 16. hxg6 {[%emt 0:00:30]} fxg6 {[%emt 0:00:29]} 17. Qg3 {[%emt 0:00:20]} Qe7 {[%emt 0:02:14]} 18. Qh4 {[%emt 0:00:12]} Qf7 {[%emt 0:00:48]} 19. f3 {[%emt 0:00:47]} Rad8 {[%emt 0:00:30]} 20. Ne2 {[%emt 0:00:57]} h5 {[%emt 0:00:37]} 21. g4 {[%emt 0:00:17]} fxg4 {[%emt 0:00:46]} 22. Nf4 {[%emt 0:00:11]} Bf5 {[%emt 0:00:26]} 23. fxg4 {[%emt 0:00:25]} Bxd3 {[%emt 0:00:05]} 24. Rxd3 {[%emt 0:00:08]} Nxg4 {[%emt 0:00:04]} 25. Nxg6 {[%emt 0:00:30]} Qxg6 {[%emt 0:00:13]} 26. Bxd8 {[%emt 0:00:04]} Re2 {[%emt 0:00:01]} 27. Qxh5 {[%emt 0:00:26]} Re1+ {[%emt 0:00:10]} 28. Rd1 {[%emt 0:00:34]} Bh6+ {[%emt 0:00:02]} 29. Qxh6 {[%emt 0:00:45]} Rxd1+ {[%emt 0:00:02]} 30. Kxd1 {[%emt 0:00:08]} Nxh6 {[%emt 0:00:18]} 31. Bh4 {[%emt 0:00:23]} Qh5+ {[%emt 0:00:00]} 32. Kd2 {[%emt 0:00:05]} Nf5 {[%emt 0:00:00]} 33. Rg1+ {[%emt 0:00:06]} Kf7 {[%emt 0:00:00]} 34. Bf2 {[%emt 0:00:11]} Qh2 {[%emt 0:00:00]} 35. Ke1 {[%emt 0:00:06]} Qf4 {[%emt 0:00:04]} 36. Rf1 {[%emt 0:00:12]} Qc1+ {[%emt 0:00:02]} 37. Ke2 {[%emt 0:00:01]} Qxc2+ {[%emt 0:00:02]} 38. Kf3 {[%emt 0:00:02]} Qd3+ {[%emt 0:00:05]} 39. Kg2 {[%emt 0:00:02]} Ke6 {[%emt 0:00:13]} 40. Re1+ {[%emt 0:00:02]} Kd7 {[%emt 0:00:01]} 41. Re5 {[%emt 0:00:02]} Qc2 {[%emt 0:00:03]} 42. Kf3 {[%emt 0:00:04]} Nd6 {[%emt 0:00:04]} 43. Re2 {[%emt 0:00:14]} Qf5+ {[%emt 0:00:02]} 44. Kg2 {[%emt 0:00:01]} Ne4 {[%emt 0:00:01]} 45. Be1 {[%emt 0:00:22]} Qg4+ {[%emt 0:00:02]} 0-1

[Event "Wuerttemberg Rapid Teams 2024"]
[Site "B?blingen, Germany"]
[Date "2024.04.13"]
[Round "2.3"]
[White "Kocharin, Timur"]
[Black "Jerie, Sven"]
[Result "1/2-1/2"]
[ECO "C77"]
[WhiteElo "2250"]
[BlackElo "2018"]
[Annotator "RC"]
[PlyCount "94"]
[EventDate "2024.04.13"]
[EventType "team-tourn"]
[SourceTitle "playchess.com"]
[Source "ChessBase"]
[SourceQuality "1"]
[TimeControl "900+5"]

1. e4 {[%emt 0:00:03]} e5 {[%emt 0:00:01]} 2. Nf3 {[%emt 0:00:07]} Nc6 {[%emt 0:00:02]} 3. Bb5 {[%emt 0:00:08]} a6 {[%emt 0:00:03]} 4. Ba4 {[%emt 0:00:06]} Nf6 {[%emt 0:00:02]} 5. d3 {[%emt 0:00:08]} d6 {[%emt 0:00:13]} 6. c4 {[%emt 0:00:04]} Bd7 {[%emt 0:00:23]} 7. Nc3 {[%emt 0:00:11]} Be7 {[%emt 0:01:09]} 8. h3 {[%emt 0:00:19]} O-O {[%emt 0:00:19]} 9. Be3 {[%emt 0:00:20]} Re8 {[%emt 0:00:35]} 10. O-O {[%emt 0:02:10]} h6 {[%emt 0:01:17]} 11. Re1 {[%emt 0:00:34]} Bf8 {[%emt 0:00:10]} 12. Qd2 {[%emt 0:00:28]} Ne7 {[%emt 0:01:31]} 13. Bxd7 {[%emt 0:00:47]} Qxd7 {[%emt 0:00:10]} 14. d4 {[%emt 0:00:39]} Ng6 {[%emt 0:00:13]} 15. d5 {[%emt 0:00:17]} Nh5 {[%emt 0:01:12]} 16. Ne2 {[%emt 0:00:55]} f5 {[%emt 0:00:20]} 17. exf5 {[%emt 0:00:08]} Qxf5 {[%emt 0:00:03]} 18. Rad1 {[%emt 0:01:33]} Be7 {[%emt 0:01:09]} 19. Nh2 {[%emt 0:01:46]} Qf7 {[%emt 0:01:32]} 20. Nf1 {[%emt 0:00:07]} Rf8 {[%emt 0:00:08]} 21. Nfg3 {[%emt 0:00:14]} Nhf4 {[%emt 0:00:13]} 22. f3 {[%emt 0:02:50]} Nxg2 {[%emt 0:00:51]} 23. Rf1 {[%emt 0:00:22]} Nxe3 {[%emt 0:00:14]} 24. Qxe3 {[%emt 0:00:02]} Bg5 {[%emt 0:00:14]} 25. Qf2 {[%emt 0:00:04]} Nh4 {[%emt 0:00:29]} 26. Rd3 {[%emt 0:00:15]} Qg6 {[%emt 0:00:19]} 27. Rb3 {[%emt 0:00:12]} e4 {[%emt 0:00:08]} 28. f4 {[%emt 0:00:13]} Nf3+ {[%emt 0:00:12]} 29. Rxf3 {[%emt 0:00:12]} exf3 {[%emt 0:00:02]} 30. Qxf3 {[%emt 0:00:01]} Bh4 {[%emt 0:00:40]} 31. Kh1 {[%emt 0:00:26]} Rae8 {[%emt 0:00:28]} 32. f5 {[%emt 0:00:05]} Qf6 {[%emt 0:00:30]} 33. Nh5 {[%emt 0:00:09]} Qxb2 {[%emt 0:00:20]} 34. Nef4 {[%emt 0:00:11]} Re1 {[%emt 0:00:59]} 35. Ng6 {[%emt 0:00:20]} Qc1 {[%emt 0:00:19]} 36. Rxe1 {[%emt 0:00:19]} Qxe1+ {[%emt 0:00:01]} 37. Kh2 {[%emt 0:00:00]} Re8 {[%emt 0:00:13]} 38. Nxh4 {[%emt 0:00:04]} Qxh4 {[%emt 0:00:01]} 39. f6 {[%emt 0:00:04]} Rf8 {[%emt 0:00:22]} 40. Qf5 {[%emt 0:00:29]} Qg5 {[%emt 0:00:23]} 41. Qe6+ {[%emt 0:00:04]} Kh7 {[%emt 0:00:13]} 42. Qd7 {[%emt 0:00:07]} Rxf6 {[%emt 0:00:06]} 43. Nxf6+ {[%emt 0:00:01]} Qxf6 {[%emt 0:00:01]} 44. Qxc7 {[%emt 0:00:01]} Qf2+ {[%emt 0:00:01]} 45. Kh1 {[%emt 0:00:01]} Qf1+ {[%emt 0:00:01]} 46. Kh2 {[%emt 0:00:00]} Qf2+ {[%emt 0:00:01]} 47. Kh1 {[%emt 0:00:01]} Qf1+ {[%emt 0:00:17]} 1/2-1/2

[Event "Wuerttemberg Rapid Teams 2024"]
[Site "B?blingen, Germany"]
[Date "2024.04.13"]
[Round "2.4"]
[White "Schaffert, Walter"]
[Black "Junesch, Gerhard"]
[Result "0-1"]
[ECO "B10"]
[WhiteElo "2033"]
[BlackElo "2267"]
[Annotator "RC"]
[PlyCount "30"]
[EventDate "2024.04.13"]
[EventType "team-tourn"]
[SourceTitle "playchess.com"]
[Source "ChessBase"]
[SourceQuality "1"]
[TimeControl "900+5"]

1. e4 {[%emt 0:00:01]} c6 {[%emt 0:00:01]} 2. Be2 {[%emt 0:00:14]} d5 {[%emt 0:00:04]} 3. e5 {[%emt 0:00:01]} c5 {[%emt 0:00:07]} 4. c3 {[%emt 0:00:09]} Nc6 {[%emt 0:00:19]} 5. d4 {[%emt 0:00:02]} Bf5 {[%emt 0:00:09]} 6. f4 {[%emt 0:00:08]} e6 {[%emt 0:00:18]} 7. Nf3 {[%emt 0:00:04]} Nh6 {[%emt 0:00:33]} 8. O-O {[%emt 0:00:07]} Bg4 {[%emt 0:00:10]} 9. Kh1 {[%emt 0:02:46]} Nf5 {[%emt 0:00:19]} 10. dxc5 {[%emt 0:00:38]} Bxc5 {[%emt 0:00:05]} 11. b4 {[%emt 0:00:18]} Bb6 {[%emt 0:00:42]} 12. Qd3 {[%emt 0:00:18]} h5 {[%emt 0:00:32]} 13. Ng5 {[%emt 0:00:58]} Bxe2 {[%emt 0:01:06]} 14. Qxe2 {[%emt 0:00:02]} h4 {[%emt 0:00:08]} 15. Na3 {[%emt 0:00:31]} Qxg5 {[%emt 0:01:07]} 0-1

[Event "Wuerttemberg Rapid Teams 2024"]
[Site "B?blingen, Germany"]
[Date "2024.04.13"]
[Round "2.5"]
[White "Peng, Xiang-Tobias"]
[Black "Kabisch, Thilo"]
[Result "0-1"]
[ECO "B41"]
[WhiteElo "2187"]
[BlackElo "2228"]
[Annotator "RC"]
[PlyCount "100"]
[EventDate "2024.04.13"]
[EventType "team-tourn"]
[SourceTitle "playchess.com"]
[Source "ChessBase"]
[SourceQuality "1"]
[TimeControl "900+5"]

1. e4 {[%emt 0:00:01]} c5 {[%emt 0:00:03]} 2. Nf3 {[%emt 0:00:01]} Nc6 {[%emt 0:00:02]} 3. d4 {[%emt 0:00:00]} cxd4 {[%emt 0:00:02]} 4. Nxd4 {[%emt 0:00:01]} e6 {[%emt 0:00:05]} 5. Be2 {[%emt 0:00:13]} a6 {[%emt 0:00:02]} 6. O-O {[%emt 0:00:02]} Nge7 {[%emt 0:00:01]} 7. a4 {[%emt 0:00:04]} Nxd4 {[%emt 0:00:03]} 8. Qxd4 {[%emt 0:00:01]} Nc6 {[%emt 0:00:03]} 9. Qc3 {[%emt 0:00:29]} Qh4 {[%emt 0:01:05]} 10. Bf3 {[%emt 0:00:38]} Bd6 {[%emt 0:00:55]} 11. g3 {[%emt 0:00:01]} Qf6 {[%emt 0:00:02]} 12. Qxf6 {[%emt 0:00:07]} gxf6 {[%emt 0:00:03]} 13. Na3 {[%emt 0:00:09]} Ne5 {[%emt 0:00:18]} 14. Be2 {[%emt 0:00:07]} h5 {[%emt 0:00:28]} 15. f4 {[%emt 0:01:31]} Nc6 {[%emt 0:01:25]} 16. Nc4 {[%emt 0:00:05]} Bc5+ {[%emt 0:00:08]} 17. Kg2 {[%emt 0:00:15]} Rb8 {[%emt 0:01:03]} 18. Be3 {[%emt 0:00:50]} Bxe3 {[%emt 0:00:17]} 19. Nxe3 {[%emt 0:00:01]} Nd4 {[%emt 0:00:08]} 20. Bd3 {[%emt 0:00:03]} b6 {[%emt 0:00:09]} 21. c3 {[%emt 0:00:58]} Nb3 {[%emt 0:00:15]} 22. Rad1 {[%emt 0:00:02]} Bb7 {[%emt 0:00:06]} 23. Nc4 {[%emt 0:00:18]} Bc6 {[%emt 0:00:10]} 24. Kf2 {[%emt 0:00:23]} Nc5 {[%emt 0:00:22]} 25. Bc2 {[%emt 0:00:04]} Bxa4 {[%emt 0:00:12]} 26. Bxa4 {[%emt 0:00:26]} Nxa4 {[%emt 0:00:02]} 27. Rd3 {[%emt 0:04:40]} Ke7 {[%emt 0:00:36]} 28. Rfd1 {[%emt 0:00:11]} Rhd8 {[%emt 0:00:09]} 29. e5 {[%emt 0:00:07]} b5 {[%emt 0:00:57]} 30. exf6+ {[%emt 0:00:01]} Kxf6 {[%emt 0:00:09]} 31. Ne5 {[%emt 0:00:04]} Nxb2 {[%emt 0:00:24]} 32. Rxd7 {[%emt 0:02:00]} Nxd1+ {[%emt 0:00:11]} 33. Ke1 {[%emt 0:00:25]} Kf5 {[%emt 0:00:53]} 34. Rxf7+ {[%emt 0:01:21]} Ke4 {[%emt 0:00:21]} 35. Nc6 {[%emt 0:00:01]} Nxc3 {[%emt 0:00:39]} 36. Nxb8 {[%emt 0:00:06]} Rxb8 {[%emt 0:00:02]} 37. Rf6 {[%emt 0:00:14]} Rd8 {[%emt 0:00:21]} 38. Kf2 {[%emt 0:01:42]} Rd2+ {[%emt 0:00:10]} 39. Ke1 {[%emt 0:00:01]} Rd6 {[%emt 0:00:44]} 40. Kf2 {[%emt 0:00:04]} a5 {[%emt 0:00:03]} 41. Rh6 {[%emt 0:00:14]} Rd2+ {[%emt 0:00:37]} 42. Ke1 {[%emt 0:00:03]} Rxh2 {[%emt 0:00:14]} 43. Rxe6+ {[%emt 0:00:04]} Kf3 {[%emt 0:00:02]} 44. Rc6 {[%emt 0:00:07]} b4 {[%emt 0:00:24]} 45. f5 {[%emt 0:00:05]} Ne4 {[%emt 0:00:15]} 46. Kd1 {[%emt 0:00:02]} b3 {[%emt 0:00:05]} 47. Kc1 {[%emt 0:00:16]} a4 {[%emt 0:00:18]} 48. f6 {[%emt 0:00:09]} a3 {[%emt 0:00:05]} 49. Kb1 {[%emt 0:00:16]} Rh1+ {[%emt 0:00:05]} 50. Rc1 {[%emt 0:00:01]} Nc3+ {[%emt 0:00:01]} 0-1

[Event "Wuerttemberg Rapid Teams 2024"]
[Site "B?blingen, Germany"]
[Date "2024.04.13"]
[Round "2.6"]
[White "Trachtmann, Mark"]
[Black "Ramirez Marin, Ivan"]
[Result "0-1"]
[ECO "D30"]
[WhiteElo "2203"]
[BlackElo "2271"]
[Annotator "RC"]
[PlyCount "98"]
[EventDate "2024.04.13"]
[EventType "team-tourn"]
[SourceTitle "playchess.com"]
[Source "ChessBase"]
[SourceQuality "1"]
[TimeControl "900+5"]

1. d4 {[%emt 0:00:02]} d5 {[%emt 0:00:05]} 2. Nf3 {[%emt 0:00:02]} Nf6 {[%emt 0:00:12]} 3. c4 {[%emt 0:00:02]} e6 {[%emt 0:00:19]} 4. g3 {[%emt 0:00:04]} c5 {[%emt 0:00:51]} 5. Bg2 {[%emt 0:00:10]} Nc6 {[%emt 0:00:01]} 6. O-O {[%emt 0:00:14]} cxd4 {[%emt 0:00:01]} 7. Nxd4 {[%emt 0:00:20]} Bc5 {[%emt 0:00:00]} 8. Nb3 {[%emt 0:00:21]} Bb6 {[%emt 0:00:01]} 9. cxd5 {[%emt 0:00:38]} exd5 {[%emt 0:00:01]} 10. Bg5 {[%emt 0:00:25]} O-O {[%emt 0:00:04]} 11. Nc3 {[%emt 0:01:00]} d4 {[%emt 0:00:00]} 12. Ne4 {[%emt 0:00:52]} Re8 {[%emt 0:00:01]} 13. h3 {[%emt 0:03:10]} Bf5 {[%emt 0:00:28]} 14. Bxf6 {[%emt 0:00:44]} gxf6 {[%emt 0:00:03]} 15. Nec5 {[%emt 0:00:14]} Qe7 {[%emt 0:00:16]} 16. Rc1 {[%emt 0:00:23]} Rac8 {[%emt 0:02:10]} 17. Re1 {[%emt 0:01:27]} Nb4 {[%emt 0:03:16]} 18. Nd3 {[%emt 0:01:55]} Bxd3 {[%emt 0:00:47]} 19. Rxc8 {[%emt 0:00:08]} Rxc8 {[%emt 0:00:49]} 20. exd3 {[%emt 0:00:01]} Qd7 {[%emt 0:00:29]} 21. a3 {[%emt 0:00:35]} Nc6 {[%emt 0:00:01]} 22. Bxc6 {[%emt 0:01:04]} Rxc6 {[%emt 0:00:35]} 23. Kh2 {[%emt 0:00:51]} Qf5 {[%emt 0:00:25]} 24. Qd2 {[%emt 0:00:36]} Kg7 {[%emt 0:00:05]} 25. Re4 {[%emt 0:00:04]} h5 {[%emt 0:00:33]} 26. Nxd4 {[%emt 0:00:34]} Bxd4 {[%emt 0:00:53]} 27. Rxd4 {[%emt 0:00:01]} Rc1 {[%emt 0:01:28]} 28. Rc4 {[%emt 0:00:48]} Rb1 {[%emt 0:01:37]} 29. Rf4 {[%emt 0:00:15]} Qd5 {[%emt 0:00:14]} 30. Re4 {[%emt 0:01:05]} Qf5 {[%emt 0:01:03]} 31. Rf4 {[%emt 0:00:00]} Qd5 {[%emt 0:00:01]} 32. Re4 {[%emt 0:00:00]} Qa2 {[%emt 0:00:42]} 33. Re2 {[%emt 0:00:00]} Qa1 {[%emt 0:00:06]} 34. Kg2 {[%emt 0:00:00]} Rh1 {[%emt 0:00:04]} 35. Kf3 {[%emt 0:00:00]} Rxh3 {[%emt 0:00:07]} 36. Qc3 {[%emt 0:00:00]} Qh1+ {[%emt 0:00:02]} 37. Ke3 {[%emt 0:00:00]} Qd5 {[%emt 0:00:05]} 38. Qc4 {[%emt 0:00:00]} Qe5+ {[%emt 0:00:08]} 39. Qe4 {[%emt 0:00:02]} Qc5+ {[%emt 0:00:06]} 40. d4 {[%emt 0:00:05]} Qc1+ {[%emt 0:00:03]} 41. Kf3 {[%emt 0:00:04]} Qh1+ {[%emt 0:00:08]} 42. Ke3 {[%emt 0:00:02]} Qc1+ {[%emt 0:00:01]} 43. Kf3 {[%emt 0:00:04]} Rh1 {[%emt 0:00:03]} 44. d5 {[%emt 0:00:07]} Qc5 {[%emt 0:00:04]} 45. Rd2 {[%emt 0:00:05]} Qd6 {[%emt 0:00:07]} 46. Qf4 {[%emt 0:00:03]} Qd7 {[%emt 0:00:08]} 47. d6 {[%emt 0:00:04]} Re1 {[%emt 0:00:01]} 48. Rd5 {[%emt 0:00:05]} Qc6 {[%emt 0:00:13]} 49. Qd4 {[%emt 0:00:15]} Re5 {[%emt 0:00:01]} 0-1

[Event "Wuerttemberg Rapid Teams 2024"]
[Site "B?blingen, Germany"]
[Date "2024.04.13"]
[Round "2.7"]
[White "Schnepp, Gunnar"]
[Black "Krockenberger, Martin"]
[Result "1-0"]
[ECO "E48"]
[WhiteElo "2233"]
[BlackElo "2125"]
[Annotator "RC"]
[PlyCount "61"]
[EventDate "2024.04.13"]
[EventType "team-tourn"]
[SourceTitle "playchess.com"]
[Source "ChessBase"]
[SourceQuality "1"]
[TimeControl "900+5"]

1. d4 {[%emt 0:00:01]} Nf6 {[%emt 0:00:04]} 2. c4 {[%emt 0:00:01]} e6 {[%emt 0:00:04]} 3. Nc3 {[%emt 0:00:25]} Bb4 {[%emt 0:00:05]} 4. e3 {[%emt 0:00:07]} O-O {[%emt 0:00:40]} 5. Bd3 {[%emt 0:00:49]} c5 {[%emt 0:00:41]} 6. Nge2 {[%emt 0:02:30]} d5 {[%emt 0:00:57]} 7. cxd5 {[%emt 0:01:14]} exd5 {[%emt 0:00:10]} 8. O-O {[%emt 0:00:30]} c4 {[%emt 0:01:22]} 9. Bc2 {[%emt 0:00:25]} Nc6 {[%emt 0:00:06]} 10. f3 {[%emt 0:02:08]} Re8 {[%emt 0:00:21]} 11. h3 {[%emt 0:00:43]} h6 {[%emt 0:02:52]} 12. a3 {[%emt 0:02:12]} Ba5 {[%emt 0:00:39]} 13. Qe1 {[%emt 0:00:43]} b5 {[%emt 0:00:54]} 14. Bd2 {[%emt 0:00:39]} Rb8 {[%emt 0:00:52]} 15. Rd1 {[%emt 0:01:13]} Qe7 {[%emt 0:02:49]} 16. Qg3 {[%emt 0:01:30]} Bc7 {[%emt 0:00:41]} 17. Qh4 {[%emt 0:00:14]} Qd6 {[%emt 0:00:48]} 18. e4 {[%emt 0:00:11]} dxe4 {[%emt 0:00:38]} 19. Bf4 {[%emt 0:00:03]} Qe7 {[%emt 0:00:24]} 20. Bxc7 {[%emt 0:00:03]} Qxc7 {[%emt 0:00:05]} 21. fxe4 {[%emt 0:00:03]} b4 {[%emt 0:00:25]} 22. axb4 {[%emt 0:00:18]} Nxb4 {[%emt 0:00:03]} 23. Bb1 {[%emt 0:00:10]} Qb6 {[%emt 0:00:27]} 24. Kh1 {[%emt 0:00:07]} Bb7 {[%emt 0:00:17]} 25. e5 {[%emt 0:00:17]} Qc6 {[%emt 0:00:33]} 26. Rf2 {[%emt 0:00:00]} Nd3 {[%emt 0:00:10]} 27. Bxd3 {[%emt 0:00:08]} cxd3 {[%emt 0:00:01]} 28. Rxd3 {[%emt 0:00:01]} Nd5 {[%emt 0:00:09]} 29. Rdf3 {[%emt 0:00:11]} Re7 {[%emt 0:00:02]} 30. Nxd5 {[%emt 0:00:03]} Qxd5 {[%emt 0:00:03]} 31. Qxe7 {[%emt 0:00:01]} 1-0

[Event "Wuerttemberg Rapid Teams 2024"]
[Site "B?blingen, Germany"]
[Date "2024.04.13"]
[Round "2.8"]
[White "Eisele, Steffen"]
[Black "Geshnizjani, Ramin"]
[Result "1-0"]
[ECO "B42"]
[WhiteElo "2230"]
[BlackElo "2137"]
[Annotator "RC"]
[PlyCount "68"]
[EventDate "2024.04.13"]
[EventType "team-tourn"]
[SourceTitle "playchess.com"]
[Source "ChessBase"]
[SourceQuality "1"]
[TimeControl "900+5"]

1. e4 {[%emt 0:00:02]} c5 {[%emt 0:00:02]} 2. Nf3 {[%emt 0:00:02]} e6 {[%emt 0:00:01]} 3. d4 {[%emt 0:00:04]} cxd4 {[%emt 0:00:03]} 4. Nxd4 {[%emt 0:00:01]} a6 {[%emt 0:00:03]} 5. c4 {[%emt 0:00:06]} Nf6 {[%emt 0:00:05]} 6. Bd3 {[%emt 0:00:40]} Bc5 {[%emt 0:01:39]} 7. Nb3 {[%emt 0:00:15]} Bb4+ {[%emt 0:00:21]} 8. Nc3 {[%emt 0:00:37]} Qc7 {[%emt 0:00:10]} 9. O-O {[%emt 0:00:26]} O-O {[%emt 0:00:21]} 10. Be3 {[%emt 0:00:40]} Bxc3 {[%emt 0:02:09]} 11. bxc3 {[%emt 0:00:03]} d6 {[%emt 0:00:06]} 12. c5 {[%emt 0:02:54]} dxc5 {[%emt 0:00:10]} 13. Bxc5 {[%emt 0:01:12]} Rd8 {[%emt 0:00:05]} 14. Qe2 {[%emt 0:00:16]} e5 {[%emt 0:00:41]} 15. Rfd1 {[%emt 0:01:05]} Be6 {[%emt 0:00:24]} 16. Be3 {[%emt 0:00:19]} Nfd7 {[%emt 0:01:48]} 17. f3 {[%emt 0:00:50]} Nc6 {[%emt 0:01:02]} 18. Qf2 {[%emt 0:00:55]} Na5 {[%emt 0:00:33]} 19. Nxa5 {[%emt 0:01:23]} Qxa5 {[%emt 0:00:02]} 20. c4 {[%emt 0:00:11]} Rac8 {[%emt 0:01:10]} 21. Rac1 {[%emt 0:00:31]} Nc5 {[%emt 0:00:11]} 22. Bf1 {[%emt 0:00:16]} Rxd1 {[%emt 0:03:06]} 23. Rxd1 {[%emt 0:00:04]} Nd7 {[%emt 0:00:38]} 24. Qb2 {[%emt 0:00:24]} Qa4 {[%emt 0:00:25]} 25. Qxb7 {[%emt 0:00:51]} Qc6 {[%emt 0:01:41]} 26. Qxc6 {[%emt 0:00:22]} Rxc6 {[%emt 0:00:00]} 27. Kf2 {[%emt 0:00:39]} f6 {[%emt 0:00:07]} 28. a3 {[%emt 0:00:35]} Nc5 {[%emt 0:00:11]} 29. Bxc5 {[%emt 0:00:18]} Rxc5 {[%emt 0:00:00]} 30. Rd6 {[%emt 0:00:26]} Bxc4 {[%emt 0:00:21]} 31. Bxc4+ {[%emt 0:00:02]} Rxc4 {[%emt 0:00:05]} 32. Rxa6 {[%emt 0:00:03]} Rc3 {[%emt 0:00:05]} 33. Ra7 {[%emt 0:00:08]} h5 {[%emt 0:00:05]} 34. h4 {[%emt 0:00:16]} Kh7 {[%emt 0:00:05]} 1-0